[Event "*** Titled Tuesday Blitz"]
[Site "Chess.com"]
[Date "2018.11.06"]
[Round "9"]
[White "twitchTriniCupid"]
[Black "vovachesss"]
[Result "0-1"]
[WhiteElo "2255"]
[BlackElo "2469"]
[TimeControl "180+2"]
[EndTime "15:06:01 PST"]
[Termination "vovachesss won by checkmate"]

1. d4 {[%clk 0:03:01.9]} 1... Nf6 {[%clk 0:02:47.5]} 2. c4 {[%clk 0:03:02.2]}
2... b6 {[%clk 0:02:42.6]} 3. Nc3 {[%clk 0:03:01.1]} 3... Bb7 {[%clk 0:02:44.1]}
4. Bg5 {[%clk 0:02:54.5]} 4... d6 {[%clk 0:02:40.3]} 5. Nf3 {[%clk 0:02:52.5]}
5... Nbd7 {[%clk 0:02:39.7]} 6. e3 {[%clk 0:02:53.1]} 6... g6 {[%clk 0:02:39.2]}
7. Be2 {[%clk 0:02:45.5]} 7... Bg7 {[%clk 0:02:40.5]} 8. O-O {[%clk 0:02:46.1]}
8... O-O {[%clk 0:02:41.9]} 9. Nd2 {[%clk 0:02:37.2]} 9... h6 {[%clk 0:02:39.9]}
10. Bh4 {[%clk 0:02:37.2]} 10... e5 {[%clk 0:02:28.1]} 11. d5 {[%clk 0:02:34.8]}
11... a5 {[%clk 0:01:53.5]} 12. b3 {[%clk 0:02:12.5]} 12... Nc5 {[%clk
0:01:50.6]} 13. a3 {[%clk 0:02:08.5]} 13... g5 {[%clk 0:01:45]} 14. Bg3 {[%clk
0:02:08.5]} 14... Nh7 {[%clk 0:01:08.8]} 15. e4 {[%clk 0:02:08.6]} 15... f5
{[%clk 0:00:53.8]} 16. f3 {[%clk 0:01:34.6]} 16... f4 {[%clk 0:00:52]} 17. Bf2
{[%clk 0:01:35.5]} 17... h5 {[%clk 0:00:52]} 18. b4 {[%clk 0:01:13.2]} 18... Nd7
{[%clk 0:00:51]} 19. Nb3 {[%clk 0:00:52.5]} 19... Bc8 {[%clk 0:00:38.2]} 20. c5
{[%clk 0:00:48.8]} 20... a4 {[%clk 0:00:36.3]} 21. Nd2 {[%clk 0:00:39.7]} 21...
bxc5 {[%clk 0:00:36.1]} 22. Nxa4 {[%clk 0:00:38.8]} 22... cxb4 {[%clk
0:00:23.6]} 23. axb4 {[%clk 0:00:37.8]} 23... Ndf6 {[%clk 0:00:21.6]} 24. h3
{[%clk 0:00:29.6]} 24... g4 {[%clk 0:00:21.9]} 25. fxg4 {[%clk 0:00:29.6]} 25...
hxg4 {[%clk 0:00:23]} 26. hxg4 {[%clk 0:00:27]} 26... Ng5 {[%clk 0:00:20.8]} 27.
Bh4 {[%clk 0:00:17.8]} 27... Bh6 {[%clk 0:00:15.2]} 28. Nc3 {[%clk 0:00:16.1]}
28... Rxa1 {[%clk 0:00:15.2]} 29. Qxa1 {[%clk 0:00:17.8]} 29... Nxg4 {[%clk
0:00:13.2]} 30. Rf3 {[%clk 0:00:13.2]} 30... Nxf3+ {[%clk 0:00:13.8]} 31. Nxf3
{[%clk 0:00:14.1]} 31... Qe8 {[%clk 0:00:13.5]} 32. Nb5 {[%clk 0:00:12.6]} 32...
Rf7 {[%clk 0:00:09.7]} 33. Qc1 {[%clk 0:00:12.8]} 33... Ne3 {[%clk 0:00:03.8]}
34. Nxc7 {[%clk 0:00:09]} 34... Qd7 {[%clk 0:00:03.5]} 35. Ne6 {[%clk
0:00:08.8]} 35... Qb7 {[%clk 0:00:04.8]} 36. Bf2 {[%clk 0:00:07.4]} 36... Bxe6
{[%clk 0:00:05.3]} 37. dxe6 {[%clk 0:00:08.4]} 37... Rc7 {[%clk 0:00:05.8]} 38.
Qd2 {[%clk 0:00:08.8]} 38... Qxe4 {[%clk 0:00:06]} 39. Qxd6 {[%clk 0:00:09.6]}
39... Rc1+ {[%clk 0:00:07.2]} 40. Kh2 {[%clk 0:00:10.6]} 40... Qg6 {[%clk
0:00:07.9]} 41. Qd8+ {[%clk 0:00:10.8]} 41... Kh7 {[%clk 0:00:09.4]} 42. Qh4
{[%clk 0:00:11.7]} 42... Qxg2# {[%clk 0:00:10.1]} 0-1

[Event "*** Titled Tuesday Blitz"]
[Site "Chess.com"]
[Date "2018.11.06"]
[Round "9"]
[White "PowerThinking2650"]
[Black "tteshan"]
[Result "1-0"]
[WhiteElo "2305"]
[BlackElo "2128"]
[TimeControl "180+2"]
[EndTime "15:06:02 PST"]
[Termination "PowerThinking2650 won by resignation"]

1. e4 {[%clk 0:03:01.9]} 1... c5 {[%clk 0:03:00.7]} 2. Nf3 {[%clk 0:03:01.6]}
2... Nc6 {[%clk 0:03:01.6]} 3. d4 {[%clk 0:03:03]} 3... cxd4 {[%clk 0:03:02.7]}
4. Nxd4 {[%clk 0:03:04.6]} 4... g6 {[%clk 0:03:04]} 5. c4 {[%clk 0:03:04.9]}
5... Bg7 {[%clk 0:03:04.7]} 6. Be3 {[%clk 0:03:06.4]} 6... Nf6 {[%clk
0:03:05.4]} 7. Nc3 {[%clk 0:03:08]} 7... O-O {[%clk 0:03:06.4]} 8. f3 {[%clk
0:03:09.2]} 8... d6 {[%clk 0:03:07.2]} 9. Qd2 {[%clk 0:03:10.1]} 9... Bd7 {[%clk
0:03:07.1]} 10. Rc1 {[%clk 0:03:10.8]} 10... a5 {[%clk 0:02:57.8]} 11. b3 {[%clk
0:03:10.5]} 11... Nxd4 {[%clk 0:02:57.9]} 12. Bxd4 {[%clk 0:03:10.2]} 12... Bc6
{[%clk 0:02:58.8]} 13. Nd5 {[%clk 0:03:10.1]} 13... Bxd5 {[%clk 0:02:59]} 14.
cxd5 {[%clk 0:03:10.6]} 14... Nd7 {[%clk 0:03:00.2]} 15. Bxg7 {[%clk 0:02:57.9]}
15... Kxg7 {[%clk 0:03:00]} 16. h4 {[%clk 0:02:59.8]} 16... Qb6 {[%clk
0:02:58.1]} 17. h5 {[%clk 0:02:58.6]} 17... Nf6 {[%clk 0:02:47.1]} 18. g4 {[%clk
0:02:38.2]} 18... Qb4 {[%clk 0:02:37.8]} 19. Rc7 {[%clk 0:02:16.9]} 19... Rfc8
{[%clk 0:02:26.3]} 20. Rxc8 {[%clk 0:01:56.5]} 20... Rxc8 {[%clk 0:02:25.5]} 21.
h6+ {[%clk 0:01:56.4]} 21... Kf8 {[%clk 0:02:22.9]} 22. Qxb4 {[%clk 0:01:54.1]}
22... axb4 {[%clk 0:02:22.7]} 23. Kd2 {[%clk 0:01:52.1]} 23... Nd7 {[%clk
0:02:21]} 24. Be2 {[%clk 0:01:18.9]} 24... Ne5 {[%clk 0:02:16.5]} 25. g5 {[%clk
0:01:15.5]} 25... Ra8 {[%clk 0:02:13.6]} 26. Ra1 {[%clk 0:01:15.4]} 26... Nd7
{[%clk 0:02:12.4]} 27. Kd3 {[%clk 0:01:09.4]} 27... b5 {[%clk 0:02:08.3]} 28.
Kd4 {[%clk 0:01:07.9]} 28... Nc5 {[%clk 0:02:08.5]} 29. Bd1 {[%clk 0:01:05.9]}
29... Ra3 {[%clk 0:02:03]} 30. Bc2 {[%clk 0:01:04.2]} 30... Ke8 {[%clk
0:02:02.5]} 31. f4 {[%clk 0:01:05.4]} 31... Kd7 {[%clk 0:02:02.3]} 32. e5 {[%clk
0:01:06.4]} 32... Nb7 {[%clk 0:01:54.2]} 33. Bd3 {[%clk 0:01:05.2]} 33... Ra5
{[%clk 0:01:52.6]} 34. Rh1 {[%clk 0:00:38.2]} 34... Rxa2 {[%clk 0:01:38.4]} 35.
Bxb5+ {[%clk 0:00:36.2]} 35... Kd8 {[%clk 0:01:36.9]} 36. e6 {[%clk 0:00:35.2]}
36... fxe6 {[%clk 0:01:35.3]} 37. dxe6 {[%clk 0:00:36.1]} 37... Rf2 {[%clk
0:01:33.6]} 38. Ke3 {[%clk 0:00:36.5]} 38... Rb2 {[%clk 0:01:33.3]} 39. Bc4
{[%clk 0:00:36.3]} 39... Nc5 {[%clk 0:01:34.1]} 40. f5 {[%clk 0:00:37.3]} 40...
gxf5 {[%clk 0:00:46]} 41. g6 {[%clk 0:00:36.9]} 41... f4+ {[%clk 0:00:47.2]} 42.
Kf3 {[%clk 0:00:32.7]} 42... Rc2 {[%clk 0:00:21.6]} 43. gxh7 {[%clk 0:00:31.1]}
43... Rc3+ {[%clk 0:00:22.6]} 44. Kxf4 {[%clk 0:00:29.1]} 44... Nd3+ {[%clk
0:00:14.3]} 45. Bxd3 {[%clk 0:00:28.9]} 45... Rxd3 {[%clk 0:00:15.8]} 46. h8=Q+
{[%clk 0:00:29.9]} 46... Kc7 {[%clk 0:00:17.6]} 47. Rc1+ {[%clk 0:00:30]} 1-0

[Event "*** Titled Tuesday Blitz"]
[Site "Chess.com"]
[Date "2018.11.06"]
[Round "9"]
[White "Bad4life"]
[Black "ZeroRealtorFade"]
[Result "1-0"]
[WhiteElo "2286"]
[BlackElo "2219"]
[TimeControl "180+2"]
[EndTime "15:06:04 PST"]
[Termination "Bad4life won by checkmate"]

1. e4 {[%clk 0:03:01.7]} 1... Nc6 {[%clk 0:03:00.8]} 2. Nf3 {[%clk 0:03:02.4]}
2... d6 {[%clk 0:03:01.7]} 3. d4 {[%clk 0:03:02.6]} 3... Nf6 {[%clk 0:03:03]} 4.
Bd3 {[%clk 0:03:03.2]} 4... g6 {[%clk 0:03:04]} 5. c3 {[%clk 0:03:04.3]} 5...
Bg7 {[%clk 0:03:05.3]} 6. O-O {[%clk 0:03:05.7]} 6... O-O {[%clk 0:03:06.7]} 7.
Re1 {[%clk 0:03:06.9]} 7... Bg4 {[%clk 0:03:07.1]} 8. Nbd2 {[%clk 0:03:07.9]}
8... e5 {[%clk 0:03:06.3]} 9. h3 {[%clk 0:03:06.6]} 9... Bxf3 {[%clk 0:03:03.5]}
10. Nxf3 {[%clk 0:03:08.5]} 10... Re8 {[%clk 0:03:03]} 11. dxe5 {[%clk
0:03:07.7]} 11... Nxe5 {[%clk 0:02:58]} 12. Nxe5 {[%clk 0:03:08.7]} 12... dxe5
{[%clk 0:02:56.6]} 13. Qf3 {[%clk 0:03:05.3]} 13... Qe7 {[%clk 0:02:53.7]} 14.
Bc4 {[%clk 0:03:02.8]} 14... Rf8 {[%clk 0:02:43.2]} 15. a4 {[%clk 0:03:02.4]}
15... Kh8 {[%clk 0:02:42.7]} 16. b3 {[%clk 0:03:03.5]} 16... Nh5 {[%clk
0:02:24.2]} 17. Ba3 {[%clk 0:03:01.5]} 17... c5 {[%clk 0:02:24.9]} 18. Rad1
{[%clk 0:03:01.1]} 18... Rac8 {[%clk 0:02:19.3]} 19. Qg4 {[%clk 0:02:56.3]}
19... Nf6 {[%clk 0:02:09.8]} 20. Qh4 {[%clk 0:02:56.5]} 20... Rfd8 {[%clk
0:01:55.1]} 21. Bc1 {[%clk 0:02:52.2]} 21... Rxd1 {[%clk 0:01:49.6]} 22. Rxd1
{[%clk 0:02:54.1]} 22... Rd8 {[%clk 0:01:46.3]} 23. Re1 {[%clk 0:02:54.7]} 23...
Rd7 {[%clk 0:01:37.4]} 24. Bg5 {[%clk 0:02:55.1]} 24... Qd6 {[%clk 0:01:26.9]}
25. f4 {[%clk 0:02:54.5]} 25... Nh5 {[%clk 0:01:05.6]} 26. f5 {[%clk 0:02:49.6]}
26... f6 {[%clk 0:00:59.7]} 27. Be3 {[%clk 0:02:38.7]} 27... Qf8 {[%clk
0:00:20.9]} 28. Be6 {[%clk 0:02:38.5]} 28... Rd3 {[%clk 0:00:19.2]} 29. Qf2
{[%clk 0:02:31.7]} 29... b6 {[%clk 0:00:16.1]} 30. Bc4 {[%clk 0:02:30.9]} 30...
Rd7 {[%clk 0:00:11.4]} 31. Be6 {[%clk 0:02:31]} 31... Rd3 {[%clk 0:00:11.8]} 32.
Qc2 {[%clk 0:02:29.6]} 32... Rd8 {[%clk 0:00:11.4]} 33. Rf1 {[%clk 0:02:25]}
33... Bh6 {[%clk 0:00:12.1]} 34. Qf2 {[%clk 0:02:18.7]} 34... Bxe3 {[%clk
0:00:12.8]} 35. Qxe3 {[%clk 0:02:20.1]} 35... Ng7 {[%clk 0:00:13.5]} 36. Bd5
{[%clk 0:02:19.9]} 36... g5 {[%clk 0:00:14.4]} 37. Kh2 {[%clk 0:02:15.6]} 37...
Ne8 {[%clk 0:00:15.1]} 38. Qe2 {[%clk 0:02:13.4]} 38... Qh6 {[%clk 0:00:15]} 39.
Qa6 {[%clk 0:02:11.4]} 39... Qg7 {[%clk 0:00:13.3]} 40. Bc4 {[%clk 0:02:06.8]}
40... Nd6 {[%clk 0:00:13]} 41. Rd1 {[%clk 0:02:04.9]} 41... Rd7 {[%clk
0:00:10.3]} 42. Be6 {[%clk 0:02:05.7]} 42... Rd8 {[%clk 0:00:10.7]} 43. a5
{[%clk 0:02:00.6]} 43... g4 {[%clk 0:00:11.1]} 44. Rd3 {[%clk 0:01:54.8]} 44...
gxh3 {[%clk 0:00:07.5]} 45. Rxh3 {[%clk 0:01:51.4]} 45... Nxe4 {[%clk
0:00:07.7]} 46. axb6 {[%clk 0:01:43.4]} 46... Qg5 {[%clk 0:00:06.9]} 47. Qe2
{[%clk 0:01:28.3]} 47... Rd2 {[%clk 0:00:06.9]} 48. bxa7 {[%clk 0:01:14]} 48...
Qf4+ {[%clk 0:00:05.6]} 49. Kg1 {[%clk 0:01:13.1]} 49... Rxe2 {[%clk 0:00:06.1]}
50. a8=Q+ {[%clk 0:01:13.8]} 50... Kg7 {[%clk 0:00:07.3]} 51. Qg8# {[%clk
0:01:14.8]} 1-0

[Event "*** Titled Tuesday Blitz"]
[Site "Chess.com"]
[Date "2018.11.06"]
[Round "9"]
[White "dhanushbharadwaj"]
[Black "GhostOfGreenval"]
[Result "0-1"]
[WhiteElo "2485"]
[BlackElo "2708"]
[TimeControl "180+2"]
[EndTime "15:06:17 PST"]
[Termination "GhostOfGreenval won by checkmate"]

1. Nf3 {[%clk 0:02:59.4]} 1... Nf6 {[%clk 0:03:00.8]} 2. c4 {[%clk 0:03:00]}
2... g6 {[%clk 0:03:01.3]} 3. Nc3 {[%clk 0:03:00.7]} 3... Bg7 {[%clk 0:03:00.9]}
4. g3 {[%clk 0:03:02.2]} 4... O-O {[%clk 0:03:01.8]} 5. Bg2 {[%clk 0:03:03.6]}
5... d6 {[%clk 0:03:03.1]} 6. O-O {[%clk 0:03:04.4]} 6... c6 {[%clk 0:03:01.9]}
7. d3 {[%clk 0:03:05.8]} 7... a5 {[%clk 0:03:02.2]} 8. Bg5 {[%clk 0:03:05.8]}
8... Nbd7 {[%clk 0:03:02.1]} 9. Bxf6 {[%clk 0:03:06.6]} 9... Nxf6 {[%clk
0:03:01.8]} 10. a3 {[%clk 0:03:07.3]} 10... Nd7 {[%clk 0:02:59.2]} 11. Rc1
{[%clk 0:03:07.1]} 11... Rb8 {[%clk 0:02:52.7]} 12. d4 {[%clk 0:03:02.8]} 12...
b5 {[%clk 0:02:51.6]} 13. cxb5 {[%clk 0:03:03.3]} 13... cxb5 {[%clk 0:02:53.5]}
14. e4 {[%clk 0:02:56.9]} 14... b4 {[%clk 0:02:50.7]} 15. axb4 {[%clk
0:02:56.6]} 15... axb4 {[%clk 0:02:52.6]} 16. Nd5 {[%clk 0:02:55.8]} 16... Bb7
{[%clk 0:02:49.2]} 17. Re1 {[%clk 0:02:48.2]} 17... Bxd5 {[%clk 0:02:47.7]} 18.
exd5 {[%clk 0:02:50.1]} 18... Nb6 {[%clk 0:02:49.6]} 19. Qb3 {[%clk 0:02:49.2]}
19... Qd7 {[%clk 0:02:49.8]} 20. Rc6 {[%clk 0:02:38.9]} 20... Rfc8 {[%clk
0:02:44.9]} 21. Rec1 {[%clk 0:02:36]} 21... Bh6 {[%clk 0:02:35.9]} 22. R1c2
{[%clk 0:02:27.2]} 22... Qf5 {[%clk 0:02:32.8]} 23. Nh4 {[%clk 0:02:17.6]} 23...
Qg4 {[%clk 0:02:26.1]} 24. Qxb4 {[%clk 0:01:51]} 24... Qd1+ {[%clk 0:01:40.3]}
25. Bf1 {[%clk 0:01:49.5]} 25... Qxc2 {[%clk 0:01:32.7]} 26. Rxc2 {[%clk
0:01:35.3]} 26... Rxc2 {[%clk 0:01:34.6]} 27. Bd3 {[%clk 0:01:34.2]} 27... Rd2
{[%clk 0:01:30.7]} 28. Ba6 {[%clk 0:01:25.9]} 28... Nd7 {[%clk 0:01:25.2]} 29.
Qa4 {[%clk 0:01:22.8]} 29... Nf6 {[%clk 0:01:26]} 30. b3 {[%clk 0:01:21.8]}
30... Ne4 {[%clk 0:01:19.9]} 31. Bc4 {[%clk 0:01:01.6]} 31... Nxf2 {[%clk
0:01:17.4]} 32. Qd7 {[%clk 0:00:56.2]} 32... Ra8 {[%clk 0:01:04.2]} 33. Nf3
{[%clk 0:00:40.1]} 33... Rc2 {[%clk 0:01:05.3]} 34. Kg2 {[%clk 0:00:27.9]} 34...
Nd3+ {[%clk 0:00:38.2]} 35. Kh3 {[%clk 0:00:25]} 35... Nf2+ {[%clk 0:00:39.7]}
36. Kg2 {[%clk 0:00:24.9]} 36... Bf8 {[%clk 0:00:37.1]} 37. g4 {[%clk
0:00:20.8]} 37... Nxg4+ {[%clk 0:00:34.6]} 38. Kg3 {[%clk 0:00:21.7]} 38... Ne3
{[%clk 0:00:36.1]} 39. Ng5 {[%clk 0:00:14.1]} 39... Nf5+ {[%clk 0:00:35.3]} 40.
Kh3 {[%clk 0:00:13]} 40... Rc3+ {[%clk 0:00:31.9]} 41. Kg4 {[%clk 0:00:13.2]}
41... h5+ {[%clk 0:00:29.4]} 42. Kf4 {[%clk 0:00:14.4]} 42... Bh6 {[%clk
0:00:26.7]} 43. h4 {[%clk 0:00:14.6]} 43... Nxh4 {[%clk 0:00:25]} 44. Qxe7
{[%clk 0:00:13.4]} 44... Rf3+ {[%clk 0:00:20.4]} 45. Ke4 {[%clk 0:00:12.5]}
45... f5# {[%clk 0:00:22.3]} 0-1

[Event "*** Titled Tuesday Blitz"]
[Site "Chess.com"]
[Date "2018.11.06"]
[Round "9"]
[White "Korchmar_Vasiliy"]
[Black "RegZryt"]
[Result "1-0"]
[WhiteElo "2707"]
[BlackElo "2520"]
[TimeControl "180+2"]
[EndTime "15:06:22 PST"]
[Termination "Korchmar_Vasiliy won by resignation"]

1. d4 {[%clk 0:03:00.8]} 1... d5 {[%clk 0:03:00.9]} 2. Nf3 {[%clk 0:03:01.5]}
2... Nf6 {[%clk 0:03:01.7]} 3. Bf4 {[%clk 0:03:03.1]} 3... Nc6 {[%clk 0:03:01]}
4. e3 {[%clk 0:03:03.8]} 4... Bf5 {[%clk 0:03:02.1]} 5. c3 {[%clk 0:02:59.1]}
5... e6 {[%clk 0:03:03.1]} 6. Nbd2 {[%clk 0:03:00.1]} 6... Bd6 {[%clk
0:03:04.3]} 7. Bg5 {[%clk 0:03:00.6]} 7... h6 {[%clk 0:03:04.5]} 8. Bh4 {[%clk
0:03:01.4]} 8... g5 {[%clk 0:03:03.7]} 9. Bg3 {[%clk 0:03:02.2]} 9... Ne7 {[%clk
0:03:03.6]} 10. Qb3 {[%clk 0:02:54.7]} 10... b6 {[%clk 0:02:57.8]} 11. Ne5
{[%clk 0:02:48.6]} 11... Bxe5 {[%clk 0:02:47]} 12. Bxe5 {[%clk 0:02:49.1]} 12...
Ng6 {[%clk 0:02:48.1]} 13. Bb5+ {[%clk 0:02:46.7]} 13... Kf8 {[%clk 0:02:48.9]}
14. Bg3 {[%clk 0:01:45.6]} 14... a6 {[%clk 0:02:45.3]} 15. Be2 {[%clk
0:01:43.2]} 15... h5 {[%clk 0:02:41.5]} 16. h3 {[%clk 0:01:42.6]} 16... h4
{[%clk 0:02:39.2]} 17. Bh2 {[%clk 0:01:43.4]} 17... c5 {[%clk 0:02:35]} 18. Nf3
{[%clk 0:01:41.5]} 18... Ne4 {[%clk 0:02:34.4]} 19. Rd1 {[%clk 0:01:29.9]} 19...
c4 {[%clk 0:02:33.8]} 20. Qb4+ {[%clk 0:01:25]} 20... Kg7 {[%clk 0:02:35]} 21.
Ne5 {[%clk 0:01:25.6]} 21... Nxe5 {[%clk 0:02:31.8]} 22. Bxe5+ {[%clk
0:01:25.9]} 22... f6 {[%clk 0:02:31.9]} 23. Bh2 {[%clk 0:01:26.8]} 23... Rf8
{[%clk 0:02:16.6]} 24. O-O {[%clk 0:01:22.3]} 24... Rf7 {[%clk 0:02:12.7]} 25.
f3 {[%clk 0:01:20.1]} 25... Ng3 {[%clk 0:02:12.8]} 26. Bxg3 {[%clk 0:01:21.6]}
26... hxg3 {[%clk 0:02:14.7]} 27. e4 {[%clk 0:01:21.1]} 27... dxe4 {[%clk
0:02:12.4]} 28. Bxc4 {[%clk 0:01:14.9]} 28... b5 {[%clk 0:01:48.3]} 29. fxe4
{[%clk 0:01:11.6]} 29... Bg4 {[%clk 0:01:46.4]} 30. Bb3 {[%clk 0:00:42]} 30...
Bxd1 {[%clk 0:01:46.9]} 31. Rxd1 {[%clk 0:00:43.9]} 31... Qb6 {[%clk 0:01:45.1]}
32. a4 {[%clk 0:00:28.4]} 32... Rb8 {[%clk 0:01:29.2]} 33. a5 {[%clk 0:00:28.7]}
33... Qc6 {[%clk 0:01:17.4]} 34. d5 {[%clk 0:00:30.2]} 34... exd5 {[%clk
0:01:18.7]} 35. Bxd5 {[%clk 0:00:32]} 35... Rd7 {[%clk 0:01:19.3]} 36. Rf1
{[%clk 0:00:17.4]} 36... Qd6 {[%clk 0:01:19.6]} 37. Qd4 {[%clk 0:00:17.9]} 37...
Rc8 {[%clk 0:01:20.9]} 38. Rf5 {[%clk 0:00:15.4]} 38... Qc5 {[%clk 0:01:14.9]}
39. Rxg5+ {[%clk 0:00:16.3]} 39... Kh6 {[%clk 0:01:13.6]} 40. Qxc5 {[%clk
0:00:05.7]} 40... Rxc5 {[%clk 0:01:15.5]} 41. Rxg3 {[%clk 0:00:07.3]} 41... b4
{[%clk 0:01:16.8]} 42. cxb4 {[%clk 0:00:07.8]} 42... Rc1+ {[%clk 0:01:17.8]} 43.
Kh2 {[%clk 0:00:08.9]} 43... Rb1 {[%clk 0:01:16.2]} 44. Rb3 {[%clk 0:00:09.4]}
44... Rc7 {[%clk 0:01:16.4]} 45. b5 {[%clk 0:00:07.3]} 45... axb5 {[%clk
0:01:16.3]} 46. Rxb5 {[%clk 0:00:09.2]} 46... Rc2 {[%clk 0:01:16.3]} 47. a6
{[%clk 0:00:08.4]} 47... Ra1 {[%clk 0:01:17.3]} 48. Bb7 {[%clk 0:00:07.9]} 48...
Ra2 {[%clk 0:01:10.9]} 49. Rb3 {[%clk 0:00:09.1]} 49... Kg5 {[%clk 0:01:10.3]}
50. e5 {[%clk 0:00:10.1]} 50... fxe5 {[%clk 0:01:10.7]} 51. Ra3 {[%clk
0:00:11.5]} 51... Raxb2 {[%clk 0:00:58.8]} 52. a7 {[%clk 0:00:09.9]} 52... Rxb7
{[%clk 0:00:58.6]} 53. a8=Q {[%clk 0:00:10.2]} 53... Rbb2 {[%clk 0:01:00.5]} 54.
Rg3+ {[%clk 0:00:10.1]} 54... Kf6 {[%clk 0:01:01.4]} 55. Qa6+ {[%clk 0:00:08.8]}
55... Kf5 {[%clk 0:01:02.5]} 56. Rf3+ {[%clk 0:00:09.2]} 1-0

[Event "*** Titled Tuesday Blitz"]
[Site "Chess.com"]
[Date "2018.11.06"]
[Round "9"]
[White "Paparama_1917"]
[Black "Supernotar"]
[Result "0-1"]
[WhiteElo "2557"]
[BlackElo "2394"]
[TimeControl "180+2"]
[EndTime "15:06:23 PST"]
[Termination "Supernotar won by resignation"]

1. e4 {[%clk 0:03:00.3]} 1... c6 {[%clk 0:02:57.9]} 2. d4 {[%clk 0:03:01]} 2...
d5 {[%clk 0:02:58.5]} 3. Nd2 {[%clk 0:03:02.4]} 3... dxe4 {[%clk 0:02:59.5]} 4.
Nxe4 {[%clk 0:03:04.2]} 4... Bf5 {[%clk 0:03:00.7]} 5. Ng3 {[%clk 0:03:04.9]}
5... Bg6 {[%clk 0:03:01.8]} 6. N1e2 {[%clk 0:03:06.2]} 6... e6 {[%clk
0:03:01.7]} 7. Nf4 {[%clk 0:03:07.1]} 7... Bd6 {[%clk 0:03:02.9]} 8. h4 {[%clk
0:03:08.1]} 8... Qc7 {[%clk 0:03:02.5]} 9. h5 {[%clk 0:03:04.4]} 9... Bxc2
{[%clk 0:03:01.5]} 10. Nxe6 {[%clk 0:02:32]} 10... Bxd1 {[%clk 0:02:06.8]} 11.
Nxc7+ {[%clk 0:02:31.8]} 11... Bxc7 {[%clk 0:02:07.9]} 12. Kxd1 {[%clk
0:02:32.9]} 12... Bxg3 {[%clk 0:02:05.1]} 13. fxg3 {[%clk 0:02:34.7]} 13... Nd7
{[%clk 0:02:02]} 14. Bc4 {[%clk 0:02:34.7]} 14... Nb6 {[%clk 0:01:59.5]} 15.
Re1+ {[%clk 0:02:34.3]} 15... Kf8 {[%clk 0:02:00.4]} 16. Bb3 {[%clk 0:02:24.9]}
16... Rd8 {[%clk 0:02:00.2]} 17. Kc2 {[%clk 0:02:25.7]} 17... Nf6 {[%clk
0:01:54.2]} 18. h6 {[%clk 0:02:24.7]} 18... Nfd5 {[%clk 0:01:53.5]} 19. hxg7+
{[%clk 0:02:25.1]} 19... Kxg7 {[%clk 0:01:54.5]} 20. Bd2 {[%clk 0:02:25.1]}
20... Rhe8 {[%clk 0:01:51.6]} 21. a3 {[%clk 0:02:17.1]} 21... Kh8 {[%clk
0:01:45.4]} 22. Bh6 {[%clk 0:02:12.3]} 22... Rg8 {[%clk 0:01:43.7]} 23. Re2
{[%clk 0:02:02.4]} 23... Rxg3 {[%clk 0:01:41.7]} 24. Rae1 {[%clk 0:01:58.2]}
24... Rdg8 {[%clk 0:01:41.6]} 25. Re8 {[%clk 0:01:34.6]} 25... Rxg2+ {[%clk
0:01:40.3]} 26. Kb1 {[%clk 0:01:34.9]} 26... Rxe8 {[%clk 0:01:34.9]} 27. Rxe8+
{[%clk 0:01:35.3]} 27... Rg8 {[%clk 0:01:35.8]} 28. Re1 {[%clk 0:01:36.3]} 28...
Rg6 {[%clk 0:01:25.3]} 29. Re8+ {[%clk 0:01:32.8]} 29... Rg8 {[%clk 0:01:26.2]}
30. Re1 {[%clk 0:01:33.2]} 30... Nc8 {[%clk 0:01:19.9]} 31. Bc2 {[%clk
0:01:25.7]} 31... Nd6 {[%clk 0:01:15.2]} 32. Rh1 {[%clk 0:00:52.3]} 32... f5
{[%clk 0:01:02.5]} 33. Rf1 {[%clk 0:00:47.3]} 33... Rg6 {[%clk 0:01:00.7]} 34.
Bd2 {[%clk 0:00:38.2]} 34... Rf6 {[%clk 0:00:51.4]} 35. Bg5 {[%clk 0:00:38.5]}
35... Rf7 {[%clk 0:00:46.5]} 36. Bh6 {[%clk 0:00:33.6]} 36... f4 {[%clk
0:00:37.9]} 37. Rf3 {[%clk 0:00:33.6]} 37... Rf6 {[%clk 0:00:20.9]} 38. Bg5
{[%clk 0:00:33.7]} 38... Rf7 {[%clk 0:00:22.3]} 39. Bb3 {[%clk 0:00:29.6]} 39...
Ne4 {[%clk 0:00:16.9]} 40. Bxd5 {[%clk 0:00:20.5]} 40... cxd5 {[%clk 0:00:17.1]}
41. Bxf4 {[%clk 0:00:12.1]} 41... Nd2+ {[%clk 0:00:17.7]} 42. Bxd2 {[%clk
0:00:13.1]} 42... Rxf3 {[%clk 0:00:18.9]} 0-1